[Event "Western Asian Girls Chess-ch 2023"]
[Site "Colombo"]
[Date "2023.12.01"]
[Round "3.7"]
[White "Pallie, Ehsha Mishela"]
[Black "Ramanayake, Nemindi Linaya"]
[Result "1/2-1/2"]
[ECO "B13"]
[WhiteElo "1569"]
[BlackElo "1361"]
[Annotator "NA RC"]
[PlyCount "103"]
[EventDate "2023.11.30"]
[EventCountry "SRI"]
[SourceTitle "playchess.com"]
[Source "ChessBase"]
[SourceQuality "1"]
[TimeControl "5400+30"]

1. e4 {[%emt 0:00:03]} c6 {[%emt 0:00:10]} 2. d4 {[%emt 0:00:05]} d5 {[%emt 0:00:09]} 3. exd5 {[%emt 0:00:05]} cxd5 {[%emt 0:00:07]} 4. Bd3 {[%emt 0:00:07]} Nc6 {[%emt 0:00:10]} 5. c3 {[%emt 0:00:31]} Nf6 {[%emt 1:32:24]} 6. h3 {[%emt 0:00:22]} g6 {[%emt 0:00:00]} 7. Nf3 {[%emt 0:00:08]} Bg7 {[%emt 0:00:00]} 8. Qc2 {[%emt 0:04:09]} Qc7 {[%emt 0:00:00]} 9. O-O {[%emt 0:08:45]} O-O {[%emt 0:00:00]} 10. Re1 {[%emt 0:01:35]} Nd7 {[%emt 0:00:00]} 11. Qb3 {[%emt 0:08:32]} Nb6 {[%emt 0:00:00]} 12. a4 {[%emt 0:03:13]} e6 {[%emt 0:00:00]} 13. Na3 {[%emt 0:23:04]} a6 {[%emt 0:00:00]} 14. Be3 {[%emt 0:01:51]} Bd7 {[%emt 0:00:00]} 15. Qd1 {[%emt 0:06:50]} Na5 {[%emt 0:00:00]} 16. Bc2 {[%emt 0:01:05]} Rac8 {[%emt 0:00:00]} 17. b3 {[%emt 0:10:15]} Na8 {[%emt 0:00:00]} 18. Bd2 {[%emt 0:13:48]} Nc6 {[%emt 0:06:30]} 19. Qe2 {[%emt 0:09:29]} f6 {[%emt 0:00:00]} 20. c4 {[%emt 0:02:03]} Kh8 {[%emt 0:00:00]} 21. g3 {[%emt 0:04:18]} Rce8 {[%emt 0:00:00]} 22. Kg2 {[%emt 0:00:27]} Qd6 {[%emt 0:00:00]} 23. Bc3 {[%emt 0:00:39]} e5 {[%emt 0:00:00]} 24. dxe5 {[%emt 0:00:12]} fxe5 {[%emt 0:00:00]} 25. cxd5 {[%emt 0:00:22]} Qxd5 {[%emt 0:00:00]} 26. Be4 {[%emt 0:00:59]} Qxb3 {[%emt 0:00:00]} 27. Bd2 {[%emt 0:00:30]} Nd4 {[%emt 0:00:00]} 28. Qc4 {[%emt 0:00:31]} Qxc4 {[%emt 0:00:00]} 29. Nxc4 {[%emt 0:00:01]} Nxf3 {[%emt 0:00:00]} 30. Bxf3 {[%emt 0:00:05]} e4 {[%emt 0:00:00]} 31. Be2 {[%emt 0:00:56]} Bxa1 {[%emt 0:00:00]} 32. Rxa1 {[%emt 0:00:01]} h5 {[%emt 0:03:11]} 33. Bb4 {[%emt 0:01:03]} Bc6 {[%emt 0:00:59]} 34. Bxf8 {[%emt 0:00:35]} Rxf8 {[%emt 0:00:03]} 35. Ne5 {[%emt 0:00:46]} Be8 {[%emt 0:01:08]} 36. Rb1 {[%emt 0:00:30]} Rf5 {[%emt 0:01:04]} 37. Nc4 {[%emt 0:00:20]} Bc6 {[%emt 0:02:07]} 38. Nd6 {[%emt 0:00:35]} e3+ {[%emt 0:00:39]} 39. f3 {[%emt 0:00:01]} Rc5 {[%emt 0:00:37]} 40. Rb3 {[%emt 0:00:46]} Bxa4 {[%emt 0:00:33]} 41. Rxe3 {[%emt 0:00:01]} Nc7 {[%emt 0:00:13]} 42. Nxb7 {[%emt 0:00:12]} Rc2 {[%emt 0:00:18]} 43. Kf1 {[%emt 0:00:48]} Rc1+ {[%emt 0:00:09]} 44. Kf2 {[%emt 0:00:07]} Rc2 {[%emt 0:00:13]} 45. Nd6 {[%emt 0:01:28]} Nd5 {[%emt 0:01:05]} 46. Re5 {[%emt 0:00:37]} Nc3 {[%emt 0:00:26]} 47. Ke1 {[%emt 0:00:27]} Rxe2+ {[%emt 0:00:14]} 48. Rxe2 {[%emt 0:00:03]} Nxe2 {[%emt 0:02:01]} 49. Kxe2 {[%emt 0:00:02]} Kg7 {[%emt 0:00:00]} 50. Ke3 {[%emt 0:00:22]} Bd7 {[%emt 0:00:00]} 51. h4 {[%emt 0:00:39]} a5 {[%emt 0:00:00]} 52. Ke4 {[%emt 0:02:07]} 1/2-1/2

[Event "Western Asian Girls Chess-ch 2023"]
[Site "Colombo"]
[Date "2023.12.01"]
[Round "3.8"]
[White "Rathnayake, R M Dulinma Hemalni"]
[Black "Sasvatha A"]
[Result "1/2-1/2"]
[ECO "B19"]
[WhiteElo "1532"]
[BlackElo "1568"]
[Annotator "NA RC"]
[PlyCount "156"]
[EventDate "2023.11.30"]
[EventCountry "SRI"]
[SourceTitle "playchess.com"]
[Source "ChessBase"]
[SourceQuality "1"]
[TimeControl "5400+30"]

1. e4 {[%emt 0:07:25]} c6 {[%emt 0:00:10]} 2. d4 {[%emt 0:00:02]} d5 {[%emt 0:00:11]} 3. Nc3 {[%emt 0:00:05]} dxe4 {[%emt 0:00:44]} 4. Nxe4 {[%emt 0:00:08]} Bf5 {[%emt 0:00:05]} 5. Ng3 {[%emt 0:00:04]} Bg6 {[%emt 0:00:05]} 6. h4 {[%emt 0:00:03]} h6 {[%emt 0:00:14]} 7. Nf3 {[%emt 0:00:05]} Nd7 {[%emt 0:00:26]} 8. h5 {[%emt 0:00:15]} Bh7 {[%emt 0:00:06]} 9. Bd3 {[%emt 0:00:03]} Bxd3 {[%emt 0:00:06]} 10. Qxd3 {[%emt 0:00:04]} Ngf6 {[%emt 0:00:05]} 11. Bd2 {[%emt 0:00:18]} Qc7 {[%emt 0:00:08]} 12. O-O-O {[%emt 0:00:36]} O-O-O {[%emt 0:00:07]} 13. Kb1 {[%emt 0:05:21]} e6 {[%emt 0:00:23]} 14. Ne4 {[%emt 0:00:39]} Nxe4 {[%emt 0:00:07]} 15. Qxe4 {[%emt 0:00:07]} Nf6 {[%emt 0:00:03]} 16. Qe2 {[%emt 0:00:20]} Rd5 {[%emt 0:00:25]} 17. c4 {[%emt 0:05:48]} Rxh5 {[%emt 0:03:47]} 18. Rxh5 {[%emt 0:00:07]} Nxh5 {[%emt 0:00:06]} 19. d5 {[%emt 0:00:38]} Bd6 {[%emt 0:18:35]} 20. Nd4 {[%emt 0:05:01]} Be5 {[%emt 0:17:37]} 21. Nxc6 {[%emt 0:02:52]} bxc6 {[%emt 0:03:57]} 22. Qxh5 {[%emt 0:00:11]} g6 {[%emt 0:14:06]} 23. Qf3 {[%emt 0:06:25]} exd5 {[%emt 0:08:53]} 24. cxd5 {[%emt 0:00:28]} Rd8 {[%emt 0:00:41]} 25. Bxh6 {[%emt 0:03:39]} Qb7 {[%emt 0:00:46]} 26. Qe2 {[%emt 0:00:54]} Bf6 {[%emt 0:02:23]} 27. Qc2 {[%emt 0:00:55]} Kb8 {[%emt 0:00:52]} 28. Bf4+ {[%emt 0:00:09]} Ka8 {[%emt 0:00:28]} 29. d6 {[%emt 0:00:32]} Qd7 {[%emt 0:01:56]} 30. Rc1 {[%emt 0:16:08]} Rb8 {[%emt 0:06:13]} 31. Qxc6+ {[%emt 0:00:33]} Qxc6 {[%emt 0:00:07]} 32. Rxc6 {[%emt 0:00:05]} Rxb2+ {[%emt 0:00:14]} 33. Kc1 {[%emt 0:00:02]} Rxf2 {[%emt 0:03:50]} 34. d7 {[%emt 0:00:49]} Be7 {[%emt 0:07:24]} 35. g3 {[%emt 0:14:54]} Rxa2 {[%emt 0:01:29]} 36. d8=Q+ {[%emt 0:00:14]} Bxd8 {[%emt 0:00:08]} 37. Rc8+ {[%emt 0:00:03]} Kb7 {[%emt 0:00:07]} 38. Rxd8 {[%emt 0:00:02]} f6 {[%emt 0:02:29]} 39. Rd7+ {[%emt 0:00:49]} Kc8 {[%emt 0:00:49]} 40. Rd6 {[%emt 0:00:53]} g5 {[%emt 0:01:01]} 41. Bd2 {[%emt 0:00:23]} Ra1+ {[%emt 0:01:07]} 42. Kc2 {[%emt 0:00:12]} Rg1 {[%emt 0:00:44]} 43. Rd3 {[%emt 0:00:02]} Rf1 {[%emt 0:01:14]} 44. Kb3 {[%emt 0:04:03]} Kc7 {[%emt 0:00:13]} 45. Kc4 {[%emt 0:00:08]} Kc6 {[%emt 0:00:46]} 46. Ra3 {[%emt 0:06:05]} Rf2 {[%emt 0:02:50]} 47. Be3 {[%emt 0:00:17]} Rf3 {[%emt 0:01:03]} 48. Bc5 {[%emt 0:00:07]} Rf1 {[%emt 0:01:52]} 49. Bxa7 {[%emt 0:00:32]} Kd6 {[%emt 0:00:37]} 50. Ra6+ {[%emt 0:02:17]} Ke7 {[%emt 0:01:09]} 51. Bd4 {[%emt 0:02:12]} Rf3 {[%emt 0:01:13]} 52. Kd5 {[%emt 0:08:29]} Rxg3 {[%emt 0:01:41]} 53. Ra7+ {[%emt 0:00:11]} Kf8 {[%emt 0:00:09]} 54. Ke6 {[%emt 0:00:22]} Kg8 {[%emt 0:00:27]} 55. Bxf6 {[%emt 0:00:36]} Re3+ {[%emt 0:00:51]} 56. Be5 {[%emt 0:00:59]} g4 {[%emt 0:00:21]} 57. Rg7+ {[%emt 0:00:19]} Kf8 {[%emt 0:00:12]} 58. Rxg4 {[%emt 0:00:02]} Re1 {[%emt 0:00:11]} 59. Rg3 {[%emt 0:00:45]} Re2 {[%emt 0:00:56]} 60. Rh3 {[%emt 0:00:10]} Rg2 {[%emt 0:00:26]} 61. Rh8+ {[%emt 0:00:57]} Rg8 {[%emt 0:00:09]} 62. Rh7 {[%emt 0:00:14]} Rg6+ {[%emt 0:00:40]} 63. Bf6 {[%emt 0:00:08]} Rg2 {[%emt 0:00:24]} 64. Be5 {[%emt 0:00:41]} Rg6+ {[%emt 0:00:09]} 65. Kf5 {[%emt 0:00:54]} Rg1 {[%emt 0:00:33]} 66. Kf6 {[%emt 0:01:45]} Rf1+ {[%emt 0:00:20]} 67. Ke6 {[%emt 0:00:20]} Rg1 {[%emt 0:00:05]} 68. Rh8+ {[%emt 0:00:45]} Rg8 {[%emt 0:00:06]} 69. Bd6+ {[%emt 0:00:02]} Kg7 {[%emt 0:00:16]} 70. Rh2 {[%emt 0:00:42]} Re8+ {[%emt 0:00:22]} 71. Be7 {[%emt 0:00:04]} Ra8 {[%emt 0:00:53]} 72. Bf6+ {[%emt 0:00:49]} Kg6 {[%emt 0:00:17]} 73. Rg2+ {[%emt 0:00:20]} Kh5 {[%emt 0:00:24]} 74. Kf5 {[%emt 0:00:26]} Ra5+ {[%emt 0:00:05]} 75. Be5 {[%emt 0:00:07]} Ra4 {[%emt 0:00:24]} 76. Rg8 {[%emt 0:01:32]} Ra6 {[%emt 0:00:27]} 77. Rh8+ {[%emt 0:00:09]} Rh6 {[%emt 0:00:07]} 78. Rxh6+ {[%emt 0:00:08]} Kxh6 {[%emt 0:00:03]} 1/2-1/2

[Event "Western Asian Girls Chess-ch 2023"]
[Site "Colombo"]
[Date "2023.12.01"]
[Round "4.1"]
[White "Rindhiya V"]
[Black "Gunawardhana, Devindya Oshini"]
[Result "0-1"]
[ECO "C78"]
[WhiteElo "1876"]
[BlackElo "1741"]
[Annotator "NA RC"]
[PlyCount "88"]
[EventDate "2023.11.30"]
[EventCountry "SRI"]
[SourceTitle "playchess.com"]
[Source "ChessBase"]
[SourceQuality "1"]
[TimeControl "5400+30"]

1. e4 {[%emt 0:00:02]} e5 {[%emt 0:00:06]} 2. Nf3 {[%emt 0:00:03]} Nc6 {[%emt 0:00:11]} 3. Bb5 {[%emt 0:00:03]} a6 {[%emt 0:00:09]} 4. Ba4 {[%emt 0:00:03]} Nf6 {[%emt 0:00:09]} 5. O-O {[%emt 0:00:06]} b5 {[%emt 0:00:10]} 6. Bb3 {[%emt 0:00:06]} Bb7 {[%emt 0:00:07]} 7. Re1 {[%emt 0:00:13]} Bc5 {[%emt 0:00:31]} 8. c3 {[%emt 0:00:37]} d6 {[%emt 0:00:17]} 9. d4 {[%emt 0:00:21]} Bb6 {[%emt 0:00:05]} 10. Be3 {[%emt 0:07:11] 10.a4 is becoming the main line.} O-O {[%emt 0:00:28]} 11. Nbd2 {[%emt 0:00:21]} h6 {[%emt 0:00:31]} 12. d5 {[%emt 0:01:56]} Ne7 {[%emt 0:03:32]} 13. Bxb6 {[%emt 0:04:15]} cxb6 {[%emt 0:00:25]} 14. Nf1 {[%emt 0:03:09] has lost popularity (14.Bc2).} Ng6 {[%emt 1:30:49]} 15. g3 {[%emt 0:07:26]} Bc8 {[%emt 0:00:00]} 16. Bc2 {[%emt 0:01:18] [#]} Ne7 $146 {[%emt 0:00:00]} ({Predecessor:} 16... Bg4 17. Ne3 Bh5 18. h3 Qd7 19. g4 Nf4 20. gxh5 Nxh3+ 21. Kf1 Nf4 22. Nh2 Rac8 {½-½ Ansat,A (2396)-Shaposhnikov,E (2529) Cheliabinsk Panchenko Memorial op-A 2021 (2)}) 17. Ne3 {[%emt 0:04:33]} Ng4 {[%emt 0:00:00]} 18. Nh4 {[%emt 0:03:58]} Nf6 {[%emt 0:00:00]} 19. f4 {[%emt 0:08:43]} Nd7 {[%emt 0:00:00]} 20. f5 {[%emt 0:04:45]} Kh7 {[%emt 0:00:00]} 21. g4 {[%emt 0:06:24]} g6 {[%emt 0:00:00]} 22. fxg6+ {[%emt 0:13:40]} fxg6 {[%emt 0:00:00]} 23. Nhg2 {[%emt 0:01:35]} Ng8 {[%emt 0:00:00]} 24. h4 {[%emt 0:01:12]} Ngf6 {[%emt 0:00:00]} 25. Rf1 {[%emt 0:12:02]} Nc5 {[%emt 0:00:00]} 26. Qf3 {[%emt 0:01:25]} Bd7 {[%emt 0:00:00]} 27. b4 {[%emt 0:00:14]} Nb7 {[%emt 0:00:00]} 28. h5 {[%emt 0:07:18]} Nxg4 {[%emt 0:00:00]} 29. hxg6+ {[%emt 0:00:15]} Kg7 {[%emt 0:00:00]} 30. Nf5+ {[%emt 0:03:13]} Bxf5 {[%emt 0:00:00]} 31. exf5 {[%emt 0:00:06]} Nf6 {[%emt 0:00:00]} 32. a4 {[%emt 0:03:07]} bxa4 {[%emt 0:00:00]} 33. Bxa4 {[%emt 0:00:57]} b5 {[%emt 0:00:00]} 34. Bb3 {[%emt 0:00:17]} a5 {[%emt 0:00:00]} 35. bxa5 {[%emt 0:01:35]} Nxa5 {[%emt 0:00:00]} 36. Rab1 {[%emt 0:01:54]} Qc7 {[%emt 0:00:00]} 37. Kh1 {[%emt 0:01:18]} Qc5 {[%emt 0:00:00]} 38. Qe3 {[%emt 0:03:08]} (38. Ba2 $17 {is a better defense.}) 38... Nxb3 {[%emt 0:00:00]} (38... Nxd5 $2 39. Qxc5 {[%mdl 64] Remove Defender} dxc5 40. Bxd5 $18) 39. Rxb3 {[%emt 0:00:08]} Qxd5 {[%emt 0:00:00]} 40. Rfb1 $2 {[%emt 0:00:07]} (40. Rb2 $17 {was necessary.}) 40... Ra2 {[%emt 0:00:00]} 41. R3b2 {[%emt 0:01:03]} Rxb2 {[%emt 0:00:00]} 42. Rxb2 {[%emt 0:00:01]} Qd1+ {[%emt 0:01:24]} 43. Ne1 $19 {[%emt 0:01:06]} Qh5+ {[%emt 0:00:05]} 44. Rh2 {[%emt 0:00:03]} Qxh2+ {[%emt 0:00:06]} 0-1

[Event "Western Asian Girls Chess-ch 2023"]
[Site "Colombo"]
[Date "2023.12.01"]
[Round "4.2"]
[White "Agajanova, Meryem"]
[Black "Sultanbek, Zeinep"]
[Result "0-1"]
[ECO "E66"]
[WhiteElo "1854"]
[BlackElo "2008"]
[Annotator "NA RC"]
[PlyCount "62"]
[EventDate "2023.11.30"]
[EventCountry "SRI"]
[SourceTitle "playchess.com"]
[Source "ChessBase"]
[SourceQuality "1"]
[TimeControl "5400+30"]

1. d4 {[%emt 0:00:03]} Nf6 {[%emt 0:00:03]} 2. c4 {[%emt 0:00:07]} g6 {[%emt 0:00:06]} 3. g3 {[%emt 0:00:12]} Bg7 {[%emt 0:00:03]} 4. Bg2 {[%emt 0:00:06]} O-O {[%emt 0:00:05]} 5. Nc3 {[%emt 0:00:12]} c5 {[%emt 0:00:38]} 6. Nf3 {[%emt 0:01:40]} Nc6 {[%emt 0:00:19]} 7. d5 {[%emt 0:01:12]} Na5 {[%emt 0:00:13]} 8. Nd2 {[%emt 0:00:19]} d6 {[%emt 0:00:42]} 9. O-O {[%emt 0:00:17]} a6 {[%emt 0:00:13]} 10. Qc2 {[%emt 0:00:21]} Rb8 {[%emt 0:00:21]} 11. b3 {[%emt 0:00:20]} b5 {[%emt 0:00:11]} 12. Bb2 {[%emt 0:00:12]} Bh6 {[%emt 0:03:29]} 13. f4 {[%emt 0:00:50]} bxc4 {[%emt 0:00:10]} 14. bxc4 {[%emt 0:00:10]} Ng4 {[%emt 0:00:16]} 15. Nd1 {[%emt 0:00:51]} Rxb2 {[%emt 0:01:34]} 16. Qxb2 {[%emt 0:00:48]} Bg7 {[%emt 0:00:06]} 17. Qc1 {[%emt 0:00:21]} Bd4+ {[%emt 0:01:27]} 18. Kh1 {[%emt 0:01:21]} e5 {[%emt 0:22:42]} 19. dxe6 {[%emt 0:16:01]} Bxe6 {[%emt 0:00:21]} 20. Rb1 {[%emt 0:02:17]} d5 {[%emt 0:10:03]} 21. cxd5 {[%emt 0:15:12]} Bxd5 {[%emt 0:00:05]} 22. Nf3 {[%emt 0:00:31]} Bxa2 {[%emt 0:02:37]} 23. Nxd4 {[%emt 0:03:00]} Qxd4 {[%emt 0:00:23]} 24. e3 {[%emt 0:08:11]} Nxe3 {[%emt 0:56:23]} 25. Rb2 {[%emt 0:08:39]} Nxf1 {[%emt 0:00:00]} 26. Rxa2 {[%emt 0:03:16]} Nb3 {[%emt 0:01:00]} 27. Qc2 {[%emt 0:01:57]} Ne3 {[%emt 0:00:30]} 28. Nxe3 {[%emt 0:06:02]} Qxe3 {[%emt 0:00:00]} 29. Bd5 {[%emt 0:00:30]} Nc1 {[%emt 0:00:00]} 30. Rxa6 {[%emt 0:02:20]} Nd3 {[%emt 0:00:00]} 31. Ra1 {[%emt 0:14:04]} Qd4 {[%emt 0:00:00]} 0-1

[Event "Western Asian Girls Chess-ch 2023"]
[Site "Colombo"]
[Date "2023.12.01"]
[Round "4.3"]
[White "Sachi Jain"]
[Black "Ahmed, Walijah"]
[Result "1-0"]
[ECO "B30"]
[WhiteElo "1743"]
[BlackElo "1858"]
[Annotator "NA RC"]
[PlyCount "79"]
[EventDate "2023.11.30"]
[EventCountry "SRI"]
[SourceTitle "playchess.com"]
[Source "ChessBase"]
[SourceQuality "1"]
[TimeControl "5400+30"]

1. e4 {[%emt 0:00:08]} c5 {[%emt 0:00:30]} 2. Nf3 {[%emt 0:00:12]} e6 {[%emt 0:00:09]} 3. d3 {[%emt 0:00:22]} Nc6 {[%emt 0:00:39]} 4. g3 {[%emt 0:01:02]} Nf6 {[%emt 0:00:56]} 5. Bg2 {[%emt 0:00:14]} d6 {[%emt 0:00:52]} 6. c3 {[%emt 0:01:02]} Be7 {[%emt 0:01:22]} 7. O-O {[%emt 0:00:22]} O-O {[%emt 0:00:58]} 8. Re1 {[%emt 0:00:27]} Qc7 {[%emt 0:01:10]} 9. Na3 {[%emt 0:12:29]} a6 {[%emt 0:02:19]} 10. h3 {[%emt 0:01:44]} Bd7 {[%emt 0:04:32]} 11. Nh2 {[%emt 0:04:21]} b5 {[%emt 0:07:47]} 12. f4 {[%emt 0:01:57]} Rab8 {[%emt 0:04:47]} 13. g4 {[%emt 0:02:03]} b4 {[%emt 0:06:02]} 14. Nc2 {[%emt 0:00:18]} bxc3 {[%emt 0:01:38]} 15. bxc3 {[%emt 0:00:05]} Qa5 {[%emt 0:07:50]} 16. Qd2 {[%emt 0:04:51]} Ne8 {[%emt 0:07:49]} 17. g5 {[%emt 0:04:29]} f6 {[%emt 0:03:07]} 18. h4 {[%emt 0:01:59]} fxg5 {[%emt 0:04:10]} 19. hxg5 {[%emt 0:00:14]} Rf7 {[%emt 0:00:21]} 20. Ne3 {[%emt 0:03:49]} Bf8 {[%emt 0:13:16]} 21. Nhg4 {[%emt 0:10:09]} Ne7 {[%emt 0:01:28]} 22. Rf1 {[%emt 0:07:08]} Bc6 {[%emt 0:05:22]} 23. Bh3 {[%emt 0:08:51]} Bd7 {[%emt 0:00:54]} 24. Nc4 {[%emt 0:03:54]} Qa4 {[%emt 0:02:28]} 25. Qf2 {[%emt 0:04:17]} Ng6 {[%emt 0:03:59]} 26. Qg3 {[%emt 0:05:25]} Qc2 {[%emt 0:01:58]} 27. Bd2 {[%emt 0:01:17]} Ne7 {[%emt 0:06:27]} 28. Rfc1 {[%emt 0:02:34]} Qa4 {[%emt 0:00:17]} 29. Nge3 {[%emt 0:00:29]} g6 {[%emt 0:03:40]} 30. Rf1 {[%emt 0:01:16]} Qc6 {[%emt 0:02:27]} 31. Bg4 {[%emt 0:00:33]} Bg7 {[%emt 0:01:41]} 32. Qh3 {[%emt 0:00:59]} d5 {[%emt 0:02:04]} 33. Ne5 {[%emt 0:02:46]} Bxe5 {[%emt 0:00:07]} 34. fxe5 {[%emt 0:00:01]} Rxf1+ {[%emt 0:00:30]} 35. Rxf1 {[%emt 0:00:02]} dxe4 {[%emt 0:00:16]} 36. dxe4 {[%emt 0:00:15]} Rb2 $18 {[%emt 0:00:57] [#]} (36... c4 37. Bc1 (37. Qf3 Kh8 $18) 37... Ng7) 37. Qf3 $2 {[%emt 0:00:47]} Kh8 {[%emt 0:01:54]} 38. Nc4 {[%emt 0:05:48]} Rxa2 {[%emt 0:00:28]} 39. Nd6 {[%emt 0:00:39]} Rxd2 {[%emt 0:01:51]} 40. Qf8+ {[%emt 0:11:12]} 1-0

[Event "Western Asian Girls Chess-ch 2023"]
[Site "Colombo"]
[Date "2023.12.01"]
[Round "4.4"]
[White "Gamage, Desandhi Dhihansa"]
[Black "Shohradova, Lala"]
[Result "1-0"]
[ECO "C07"]
[WhiteElo "1608"]
[BlackElo "1846"]
[Annotator "NA RC"]
[PlyCount "85"]
[EventDate "2023.11.30"]
[EventCountry "SRI"]
[SourceTitle "playchess.com"]
[Source "ChessBase"]
[SourceQuality "1"]
[TimeControl "5400+30"]

1. e4 {[%emt 0:00:02]} e6 {[%emt 0:00:04]} 2. d4 {[%emt 0:00:03]} d5 {[%emt 0:00:02]} 3. Nd2 {[%emt 0:00:19]} c5 {[%emt 0:00:10]} 4. exd5 {[%emt 0:00:20]} Qxd5 {[%emt 0:00:07]} 5. dxc5 {[%emt 0:00:15]} Bxc5 {[%emt 0:00:39]} 6. Ngf3 {[%emt 0:00:14]} Nf6 {[%emt 0:01:33]} 7. Bc4 {[%emt 0:00:33]} Qc6 {[%emt 0:01:25]} 8. Qe2 {[%emt 0:00:52]} a6 {[%emt 0:00:57]} 9. O-O {[%emt 0:01:44]} Nbd7 {[%emt 0:13:50]} 10. a4 {[%emt 0:05:15]} b6 {[%emt 0:06:22]} 11. c3 {[%emt 0:05:03]} Bb7 {[%emt 0:01:55]} 12. b4 {[%emt 0:05:23]} Bd6 {[%emt 0:00:46]} 13. b5 {[%emt 0:05:12]} axb5 {[%emt 0:00:11]} 14. Bxb5 {[%emt 0:01:57]} Qxc3 {[%emt 0:06:30]} 15. Nc4 {[%emt 0:04:05]} Bc5 {[%emt 0:30:36]} 16. Bb2 {[%emt 0:06:47]} Qb3 {[%emt 0:09:51]} 17. Rfd1 {[%emt 0:00:42]} Nd5 {[%emt 0:04:06]} 18. Rd3 {[%emt 0:06:39]} Nf4 {[%emt 0:03:02]} 19. Bxd7+ {[%emt 0:00:12]} Ke7 {[%emt 0:00:21]} 20. Rxb3 {[%emt 0:00:16]} Nxe2+ {[%emt 0:00:01]} 21. Kf1 {[%emt 0:00:11]} Nf4 {[%emt 0:01:19]} 22. Bb5 {[%emt 0:01:11]} Rhd8 {[%emt 0:01:44]} 23. Ba3 {[%emt 0:01:47]} Bd5 {[%emt 0:03:22]} 24. Nxb6 {[%emt 0:03:03]} Bxb3 {[%emt 0:04:24]} 25. Bxc5+ {[%emt 0:00:05]} Kf6 {[%emt 0:00:07]} 26. Nxa8 {[%emt 0:00:16]} Rxa8 {[%emt 0:00:25]} 27. Bd6 {[%emt 0:00:45]} g5 {[%emt 0:00:51]} 28. a5 {[%emt 0:00:56]} Bd5 {[%emt 0:00:23]} 29. a6 {[%emt 0:00:54]} Nxg2 {[%emt 0:00:14]} 30. Kxg2 {[%emt 0:01:29]} g4 {[%emt 0:00:27]} 31. Be2 {[%emt 0:00:34]} Rg8 {[%emt 0:00:34]} 32. Bg3 {[%emt 0:01:32]} h5 {[%emt 0:00:28]} 33. Bh4+ {[%emt 0:01:23]} Kg7 {[%emt 0:02:17]} 34. Kg3 {[%emt 0:01:05]} gxf3 {[%emt 0:02:06]} 35. Bxf3 {[%emt 0:00:05]} Kh6+ {[%emt 0:00:47]} 36. Kf4 {[%emt 0:00:03]} e5+ {[%emt 0:00:04]} 37. Ke3 {[%emt 0:00:07]} e4 {[%emt 0:00:18]} 38. Bxe4 {[%emt 0:00:39]} Re8 {[%emt 0:00:35]} 39. f3 {[%emt 0:01:55]} f5 {[%emt 0:00:10]} 40. Kd4 {[%emt 0:00:36]} Bxe4 {[%emt 0:00:41]} 41. fxe4 {[%emt 0:00:05]} Rxe4+ {[%emt 0:00:12]} 42. Kd5 {[%emt 0:00:16]} Rxh4 {[%emt 0:00:40]} 43. a7 {[%emt 0:00:08]} 1-0

[Event "Western Asian Girls Chess-ch 2023"]
[Site "Colombo"]
[Date "2023.12.01"]
[Round "4.5"]
[White "Bhagyashree Patil"]
[Black "Tharushi, T H D Niklesha"]
[Result "1-0"]
[ECO "E43"]
[WhiteElo "1830"]
[BlackElo "1552"]
[Annotator "NA RC"]
[PlyCount "63"]
[EventDate "2023.11.30"]
[EventCountry "SRI"]
[SourceTitle "playchess.com"]
[Source "ChessBase"]
[SourceQuality "1"]
[TimeControl "5400+30"]

1. d4 {[%emt 0:00:10]} Nf6 {[%emt 0:00:05]} 2. Nf3 {[%emt 0:00:05]} e6 {[%emt 0:00:04]} 3. e3 {[%emt 0:00:08]} b6 {[%emt 0:01:24]} 4. c4 {[%emt 0:00:24]} Bb7 {[%emt 0:00:28]} 5. Nc3 {[%emt 0:01:35]} Bb4 {[%emt 0:00:29]} 6. Bd3 {[%emt 0:00:40]} O-O {[%emt 0:02:21]} 7. O-O {[%emt 0:00:47]} c5 {[%emt 0:01:57]} 8. a3 {[%emt 0:03:59]} Bxc3 {[%emt 0:00:07]} 9. bxc3 {[%emt 0:00:02]} d5 {[%emt 0:01:30]} 10. cxd5 {[%emt 0:01:07]} exd5 {[%emt 0:00:27]} 11. c4 {[%emt 0:04:41]} Qc7 {[%emt 0:10:50]} 12. dxc5 {[%emt 0:07:32]} dxc4 {[%emt 0:01:50]} 13. Bxc4 {[%emt 0:01:50]} Qxc5 {[%emt 0:00:17]} 14. Qd4 {[%emt 0:01:39]} Rc8 {[%emt 0:01:03]} 15. Be2 {[%emt 0:03:21]} Qe7 {[%emt 0:08:21]} 16. Rd1 {[%emt 0:12:09]} Nc6 {[%emt 0:19:21]} 17. Qh4 {[%emt 0:02:47]} Ne5 {[%emt 0:03:43]} 18. Bb2 {[%emt 0:02:21]} Bxf3 {[%emt 0:04:37]} 19. Bxf3 {[%emt 0:00:50]} Nxf3+ {[%emt 0:00:18]} 20. gxf3 {[%emt 0:00:02]} Rc6 {[%emt 0:01:03]} 21. Kh1 {[%emt 0:01:47]} Qe6 {[%emt 0:09:01]} 22. Rg1 {[%emt 0:02:19]} Qf5 {[%emt 0:00:20]} 23. Rg3 {[%emt 0:02:20]} Nh5 {[%emt 0:02:01]} 24. Rh3 {[%emt 0:00:26]} Rh6 {[%emt 0:00:44]} 25. Rg1 {[%emt 0:01:40]} f6 {[%emt 0:08:25]} 26. e4 {[%emt 0:04:44]} Qd7 {[%emt 0:00:17]} 27. Bxf6 {[%emt 0:05:19]} Rxf6 {[%emt 0:07:50]} 28. Qxh5 {[%emt 0:00:41]} g6 {[%emt 0:00:01]} 29. Rhg3 {[%emt 0:02:24]} Qf7 {[%emt 0:03:13]} 30. f4 {[%emt 0:04:40]} Rxf4 {[%emt 0:01:29]} 31. Rxg6+ {[%emt 0:02:59]} Kh8 {[%emt 0:00:01]} 32. Qe5+ {[%emt 0:00:50]} 1-0